fUST/lending_fUST_20250826
["ID","MTS","AMOUNT","RATE_DAILY","PERIOD"]
[381441633,1756198258669,-480.0,0.00041643,30]
[381441634,1756198258678,-480.0,0.00041643,30]
[381441635,1756198258688,-4640.08,0.00041643,30]
[381441636,1756198258698,-576.05,0.00041643,30]
[381441637,1756198258708,-480.0,0.00041643,30]
[381441638,1756198258718,-480.0,0.00041643,30]
[381441639,1756198258727,-558.02,0.00041643,30]
[381441640,1756198258737,-2462.11,0.00041643,30]
[381441641,1756198258747,-480.0,0.00041643,30]
[381441642,1756198258757,-500.0,0.00041643,30]
[381441643,1756198258767,-480.0,0.00041643,30]
[381441644,1756198258777,-7220.81,0.00041643,30]
[381441645,1756198258786,-1041.64,0.00041643,30]
[381441646,1756198258795,-480.0,0.00041643,30]
[381441647,1756198258805,-480.0,0.00041643,30]
[381441648,1756198258814,-480.0,0.00041643,30]
[381441649,1756198258825,-480.0,0.00041643,30]
[381441650,1756198258834,-480.0,0.00041643,30]
[381441651,1756198258843,-480.0,0.00041643,30]
[381441652,1756198258854,-480.0,0.00041643,30]
[381441653,1756198258863,-480.0,0.00041643,30]
[381441654,1756198258874,-966.4,0.00041643,30]
[381441655,1756198258887,-3109.14,0.00041643,21]
[381441656,1756198258897,-480.0,0.00041643,30]
[381441657,1756198258906,-8544.28,0.00041643,30]
[381441658,1756198258915,-480.0,0.00041643,30]
[381441659,1756198258926,-480.0,0.00041643,30]
[381441660,1756198258935,-661.58,0.00041643,30]
[381441661,1756198258945,-554.61,0.00041643,30]
[381441662,1756198258956,-480.0,0.00041643,30]
[381441663,1756198258966,-1054.84,0.00041643,30]
[381441664,1756198258975,-1041.46,0.00041643,30]
[381441665,1756198258985,-480.0,0.00041643,30]
[381441666,1756198258996,-480.0,0.00041643,30]
[381441667,1756198259005,-973.03,0.00041643,30]
[381441668,1756198259016,-480.0,0.00041643,30]
[381441669,1756198259027,-650.84,0.00041643,30]
[381441670,1756198259036,-480.0,0.00041643,30]
[381441671,1756198259046,-191.11641776,0.00041643,30]
[381441672,1756198259055,-1134.98,0.00041643,30]
[381441673,1756198259065,-844.88,0.00041643,30]
[381441674,1756198259074,-5251.84,0.00041643,30]
[381441675,1756198259082,-716.2,0.00041643,30]
[381441676,1756198259091,-480.0,0.00041643,30]
[381441677,1756198259101,-617.19,0.00041643,30]
[381441678,1756198259110,-1065.75,0.00041643,30]
[381441679,1756198259120,-480.0,0.00041643,30]
[381441680,1756198259129,-1267.47,0.00041643,30]
[381441681,1756198259139,-626.19,0.00041643,30]
[381441682,1756198259148,-480.0,0.00041643,30]
[381441683,1756198259157,-10030.08,0.00041643,30]
[381441684,1756198259166,-480.0,0.00041643,30]
[381441685,1756198259175,-17788.27,0.00041643,30]
[381441686,1756198259184,-480.0,0.00041643,30]
[381441687,1756198259194,-480.0,0.00041643,30]
[381441688,1756198259204,-12265.72,0.00041643,30]
[381441689,1756198259214,-480.0,0.00041643,7]
[381441690,1756198259224,-480.0,0.00041643,30]
[381441691,1756198259233,-571.01,0.00041643,14]
[381441692,1756198259243,-480.0,0.00041643,2]
[381441693,1756198259252,-2077.67,0.00041643,30]
[381441694,1756198259261,-480.0,0.00041643,30]
[381441695,1756198259271,-480.0,0.00041643,30]
[381441696,1756198259280,-480.0,0.00041643,30]
[381441697,1756198259289,-613.44,0.00041643,30]
[381441698,1756198259299,-480.0,0.00041643,30]
[381441699,1756198259309,-933.93,0.00041643,30]
[381441700,1756198259318,-480.0,0.00041643,30]
[381441701,1756198259327,-480.0,0.00041643,2]
[381441702,1756198259336,-480.0,0.00041643,30]
[381441703,1756198259346,-1329.41,0.00041643,30]
[381441704,1756198259355,-480.0,0.00041643,30]
[381441705,1756198259364,-868.7,0.00041643,30]
[381441706,1756198259374,-2107.15,0.00041643,30]
[381441707,1756198259383,-1899.84,0.00041643,30]
[381441708,1756198259392,-546.36,0.00041643,30]
[381441709,1756198259401,-642.77,0.00041643,30]
[381441710,1756198259411,-6087.08,0.00041643,30]
[381441711,1756198259420,-480.0,0.00041643,30]
[381441712,1756198259429,-480.0,0.00041643,30]
[381441713,1756198259438,-3019.63,0.00041643,30]
[381441714,1756198259448,-2553.6,0.000417,7]
[381441715,1756198259457,-200.0,0.00041722,120]
[381441716,1756198259466,-500.0,0.0004173,60]
[381441717,1756198259475,-500.0,0.0004173,60]
[381441718,1756198259484,-500.0,0.0004173,30]
[381441719,1756198259494,-500.0,0.0004173,30]
[381441720,1756198259503,-173.26789,0.00041755,7]
[381441721,1756198259512,-500.0,0.00041775,30]
[381441722,1756198259521,-173.26789,0.000418,20]
[381441723,1756198259530,-159.583838,0.000418,20]
[381441724,1756198259539,-150.0,0.000418,10]
[381441725,1756198259548,-173.074334,0.000418,20]
[381441726,1756198259557,-154.762488,0.000418,20]
[381441727,1756198259566,-499.3,0.00041808,30]
[381441728,1756198259575,-974.0,0.00041828,2]
[381441729,1756198259585,-2156.0,0.00041828,2]
[381441730,1756198259594,-638.0,0.00041828,2]
[381441731,1756198259603,-5000.0,0.00041887,82]
[381441732,1756198259613,-10329.03,0.000419,120]
[381441733,1756198259622,-150.0,0.000419,120]
[381441734,1756198259631,-191.429803,0.000419,2]
[381441735,1756198259641,-2264.10087164,0.00041916,30]
[381441736,1756198259650,-804.69,0.00041917,30]
[381441737,1756198259659,-480.0,0.00041917,30]
[381441738,1756198259668,-480.0,0.00041917,30]
[381441739,1756198259677,-480.0,0.00041917,30]
[381441740,1756198259687,-480.0,0.00041917,30]
[381441741,1756198259696,-480.0,0.00041917,30]
[381441742,1756198259705,-480.0,0.00041917,30]
[381441743,1756198259714,-726.39,0.00041917,30]
[381441744,1756198259723,-245.09047649,0.00041917,30]
[381441745,1756198259732,-480.0,0.00041917,30]
[381441746,1756198259741,-496.31,0.00041917,30]
[381441747,1756198259750,-480.0,0.00041917,30]
[381441748,1756198259759,-702.1,0.00041917,30]
[381441749,1756198259768,-480.0,0.00041917,30]
[381441750,1756198259778,-615.71,0.00041917,30]
[381441751,1756198259787,-480.0,0.00041917,30]
[381441752,1756198259796,-734.84,0.00041917,30]
[381441753,1756198259805,-480.0,0.00041917,30]
[381441754,1756198259816,-399.08619867,0.00041917,30]
[381441755,1756198259825,-480.0,0.00041917,30]
[381441756,1756198259834,-1328.78,0.00041917,30]
[381441757,1756198259843,-480.0,0.00041917,30]
[381441758,1756198259852,-480.0,0.00041917,30]
[381441759,1756198259861,-480.0,0.00041917,30]
[381441760,1756198259871,-657.53,0.00041917,30]
[381441761,1756198259882,-480.0,0.00041917,30]
[381441762,1756198259893,-2642.78,0.00041917,30]
[381441763,1756198259902,-480.0,0.00041917,30]
[381441764,1756198259912,-480.0,0.00041917,30]
[381441765,1756198259923,-480.0,0.00041917,30]
[381441766,1756198259932,-526.48,0.00041917,30]
[381441767,1756198259942,-1616.65,0.00041917,30]
[381441768,1756198259952,-559.52,0.00041917,30]
[381441769,1756198259963,-346.40945716,0.00041917,30]
[381441770,1756198259972,-1018.43,0.00041917,30]
[381441771,1756198259981,-480.0,0.00041917,30]
[381441772,1756198259992,-480.0,0.00041917,30]
[381441773,1756198260001,-970.15,0.00041917,30]
[381441774,1756198260010,-3417.9,0.00041917,30]
[381441775,1756198260020,-480.0,0.00041917,30]
[381441776,1756198260030,-568.04,0.00041917,30]
[381441777,1756198260039,-480.0,0.00041917,30]
[381441778,1756198260049,-620.61,0.00041917,30]
[381441779,1756198260059,-480.0,0.00041917,30]
[381441780,1756198260068,-1673.41,0.00041917,30]
[381441781,1756198260078,-480.0,0.00041917,30]
[381441782,1756198260087,-480.0,0.00041917,30]
[381441783,1756198260097,-480.0,0.00041917,30]
[381441784,1756198260106,-480.0,0.00041917,30]
[381441785,1756198260116,-1020.49,0.00041917,30]
[381441786,1756198260125,-480.0,0.00041917,30]
[381441787,1756198260134,-93.8460462,0.00041917,30]
[381441788,1756198260377,-552.2439538,0.00041917,30]
[381441789,1756198260387,-480.0,0.00041917,30]
[381441790,1756198260398,-480.0,0.00041917,30]
[381441791,1756198260407,-537.13,0.00041917,30]
[381441792,1756198260416,-480.0,0.00041917,30]
[381441793,1756198260426,-597.89,0.00041917,30]
[381441794,1756198260436,-480.0,0.00041917,30]
[381441795,1756198260445,-480.0,0.00041917,30]
[381441796,1756198260454,-480.0,0.00041917,30]
[381441797,1756198260463,-696.06,0.00041917,30]
[381441798,1756198260478,-1606.89,0.00041917,30]
[381441799,1756198260488,-725.66,0.00041917,30]
[381441800,1756198260498,-690.29,0.00041917,30]
[381441801,1756198260508,-670.64,0.00041917,30]
[381441802,1756198260517,-480.0,0.00041917,30]
[381441803,1756198260527,-376.9963778,0.00041917,30]
[381441804,1756198260537,-480.0,0.00041917,30]
[381441805,1756198260546,-344.11722193,0.00041917,30]
[381441806,1756198260611,-480.0,0.00041917,30]
[381441807,1756198260620,-6191.39,0.00041917,30]
[381441808,1756198260629,-480.0,0.00041917,30]
[381441809,1756198260639,-480.0,0.00041917,30]
[381441810,1756198260647,-480.0,0.00041917,30]
[381441811,1756198260657,-558.44,0.00041917,30]
[381441812,1756198260666,-462.39340812,0.00041917,30]
[381441813,1756198260676,-850.15,0.00041917,30]
[381441814,1756198260685,-1001.28,0.00041917,30]
[381441815,1756198260694,-1485.36,0.00041917,30]
[381441816,1756198260703,-480.0,0.00041917,30]
[381441817,1756198260712,-480.0,0.00041917,30]
[381441818,1756198260724,-480.0,0.00041917,30]
[381441819,1756198260733,-480.0,0.00041917,30]
[381441820,1756198260742,-743.23,0.00041917,30]
[381441821,1756198260752,-745.31,0.00041917,30]
[381441822,1756198260761,-480.0,0.00041917,30]
[381441823,1756198260770,-601.49,0.00041917,30]
[381441824,1756198260779,-480.0,0.00041917,30]
[381441825,1756198260788,-2704.59,0.00041917,30]
[381441826,1756198260798,-607.47,0.00041917,30]
[381441827,1756198260807,-480.0,0.00041917,30]
[381441828,1756198260816,-480.0,0.00041917,30]
[381441829,1756198260825,-257.68268528,0.00041917,30]
[381441830,1756198260834,-480.0,0.00041917,30]
[381441831,1756198260843,-524.61,0.00041917,30]
[381441832,1756198260853,-537.83,0.00041917,30]
[381441833,1756198260862,-480.0,0.00041917,30]
[381441834,1756198260871,-480.0,0.00041917,30]
[381441835,1756198260883,-552.2,0.00041917,7]
[381441836,1756198260893,-480.0,0.00041917,30]
[381441837,1756198260902,-560.66,0.00041917,30]
[381441838,1756198260911,-480.0,0.00041917,30]
[381441839,1756198260920,-480.0,0.00041917,30]
[381441840,1756198260931,-592.41,0.00041917,30]
[381441841,1756198260940,-731.04,0.00041917,30]
[381441842,1756198260950,-480.0,0.00041917,30]
[381441843,1756198260961,-480.0,0.00041917,30]
[381441844,1756198260972,-480.0,0.00041917,30]
[381441845,1756198260981,-1198.19,0.00041917,30]
[381441846,1756198260990,-480.0,0.00041917,30]
[381441847,1756198260999,-689.41,0.00041917,30]
[381441848,1756198261009,-480.0,0.00041917,30]
[381441849,1756198261019,-480.0,0.00041917,30]
[381441850,1756198261028,-555.42,0.00041917,30]
[381441851,1756198261037,-480.0,0.00041917,30]
[381441852,1756198261048,-480.0,0.00041917,30]
[381441853,1756198261058,-2805.44,0.00041917,30]
[381441854,1756198261067,-1797.54,0.00041917,30]
[381441855,1756198261077,-673.23,0.00041917,30]
[381441856,1756198261086,-7615.41,0.00041917,30]
[381441857,1756198261096,-480.0,0.00041917,30]
[381441858,1756198261105,-362.97330094,0.00041917,30]
[381441859,1756198261115,-1484.34,0.00041917,30]
[381441860,1756198261124,-1335.61,0.00041917,30]
[381441861,1756198261134,-491.56,0.00041917,30]
[381441862,1756198261143,-291.25064386,0.00041917,30]
[381441863,1756198261152,-480.0,0.00041917,30]
[381441864,1756198261161,-480.0,0.00041917,30]
[381441865,1756198261170,-587.88,0.00041917,30]
[381441866,1756198261179,-701.07,0.00041917,30]
[381441867,1756198261188,-480.0,0.00041917,30]
[381441868,1756198261198,-1010.95,0.00041917,30]
[381441869,1756198261207,-577.17,0.00041917,20]
[381441870,1756198261216,-480.0,0.00041917,30]
[381441871,1756198261227,-480.0,0.00041917,30]
[381441872,1756198261236,-724.14,0.00041917,30]
[381441873,1756198261246,-529.41,0.00041917,30]
[381441874,1756198261255,-1258.99,0.00041917,30]
[381441875,1756198261264,-480.0,0.00041917,30]
[381441876,1756198261274,-480.0,0.00041917,30]
[381441877,1756198261283,-480.0,0.00041917,30]
[381441878,1756198261293,-480.0,0.00041917,30]
[381441879,1756198261303,-480.0,0.00041917,30]
[381441880,1756198261313,-480.0,0.00041917,30]
[381441881,1756198261323,-480.0,0.00041917,30]
[381441882,1756198261333,-480.0,0.00041917,30]
[381441883,1756198261342,-480.0,0.00041917,30]
[381441884,1756198261352,-1430.69,0.00041917,30]
[381441885,1756198261361,-480.0,0.00041917,30]
[381441886,1756198261370,-604.94550553,0.00041917,30]
[381441887,1756198261381,-480.0,0.00041917,30]
[381441888,1756198261392,-480.0,0.00041917,30]
[381441889,1756198261403,-480.0,0.00041917,30]
[381441890,1756198261413,-480.0,0.00041917,30]
[381441891,1756198261423,-480.0,0.00041917,30]
[381441892,1756198261432,-480.0,0.00041917,30]
[381441893,1756198261442,-737.92,0.00041917,30]
[381441894,1756198261451,-480.0,0.00041917,30]
[381441895,1756198261462,-1011.04,0.00041917,30]
[381441896,1756198261473,-480.0,0.00041917,30]
[381441897,1756198261482,-480.0,0.00041917,30]
[381441898,1756198261492,-200.0,0.00041917,30]
[381441899,1756198261501,-480.0,0.00041917,30]
[381441900,1756198261511,-999.09,0.00041917,30]
[381441901,1756198261520,-480.0,0.00041917,30]
[381441902,1756198261529,-1446.57,0.00041917,30]
[381441903,1756198261538,-686.73,0.00041917,30]
[381441904,1756198261548,-813.38,0.00041917,30]
[381441905,1756198261557,-513.15,0.00041917,30]
[381441906,1756198261567,-480.0,0.00041917,30]
[381441907,1756198261576,-480.08,0.00041917,30]
[381441908,1756198261585,-186.50078725,0.00041917,30]
[381441909,1756198261595,-480.0,0.00041917,30]
[381441910,1756198261605,-2066.61,0.00041917,30]
[381441911,1756198261615,-867.58,0.00041917,30]
[381441912,1756198261625,-480.0,0.00041917,30]
[381441913,1756198261635,-224.40348567,0.00041917,30]
[381441914,1756198261644,-1244.82,0.00041917,30]
[381441915,1756198261654,-579.61,0.00041917,30]
[381441916,1756198261663,-860.46,0.00041917,30]
[381441917,1756198261673,-1966.34,0.00041917,30]
[381441918,1756198261682,-799.77,0.00041917,30]
[381441919,1756198261692,-680.12,0.00041917,30]
[381441920,1756198261702,-480.0,0.00041917,30]
[381441921,1756198261711,-480.0,0.00041917,30]
[381441922,1756198261722,-3885.88,0.00041917,30]
[381441923,1756198261732,-480.0,0.00041917,30]
[381441924,1756198261742,-480.0,0.00041917,30]
[381441925,1756198261751,-480.0,0.00041917,30]
[381441926,1756198261760,-961.44,0.00041917,30]
[381441927,1756198261770,-480.0,0.00041917,30]
[381441928,1756198261779,-480.0,0.00041917,30]
[381441929,1756198261789,-480.0,0.00041917,30]
[381441930,1756198261798,-503.69,0.00041917,30]
[381441931,1756198261807,-554.55,0.00041917,30]
[381441932,1756198261816,-745.34,0.00041917,30]
[381441933,1756198261825,-2596.81,0.00041917,30]
[381441934,1756198261835,-480.0,0.00041917,30]
[381441935,1756198261845,-694.04,0.00041917,30]
[381441936,1756198261853,-459.9761096,0.00041917,30]
[381441937,1756198261862,-735.6,0.00041917,30]
[381441938,1756198261872,-5716.47,0.00041917,30]
[381441939,1756198261883,-1702.95,0.00041917,30]
[381441940,1756198261895,-233.8958808,0.00041917,30]
[381441941,1756198261904,-1002.02,0.00041917,30]
[381441942,1756198261913,-699.88,0.00041917,30]
[381441943,1756198261923,-886.14,0.00041917,30]
[381441944,1756198261934,-480.0,0.00041917,30]
[381441945,1756198261943,-530.4,0.00041917,30]
[381441946,1756198261953,-799.0,0.00041917,30]
[381441947,1756198261963,-480.0,0.00041917,30]
[381441948,1756198261973,-946.85,0.00041917,30]
[381441949,1756198261982,-1113.55,0.00041917,30]
[381441950,1756198261992,-480.0,0.00041917,30]
[381441951,1756198262001,-486.28,0.00041917,30]
[381441952,1756198262010,-574.83,0.00041917,30]
[381441953,1756198262020,-480.0,0.00041917,30]
[381441954,1756198262031,-556.37,0.00041917,30]
[381441955,1756198262040,-480.0,0.00041917,30]
[381441956,1756198262049,-480.0,0.00041917,30]
[381441957,1756198262059,-480.0,0.00041917,30]
[381441958,1756198262068,-660.11,0.00041917,30]
[381441959,1756198262078,-480.0,0.00041917,30]
[381441960,1756198262087,-1039.38,0.00041917,30]
[381441961,1756198262097,-1745.23,0.00041917,30]
[381441962,1756198262106,-480.0,0.00041917,30]
[381441963,1756198262115,-967.77,0.00041917,30]
[381441964,1756198262124,-480.0,0.00041917,30]
[381441965,1756198262133,-2671.85,0.00041917,30]
[381441966,1756198262142,-742.18,0.00041917,30]
[381441967,1756198262151,-480.0,0.00041917,30]
[381441968,1756198262161,-480.0,0.00041917,30]
[381441969,1756198262170,-480.0,0.00041917,30]
[381441970,1756198262180,-1432.12,0.00041917,30]
[381441971,1756198262190,-1544.88,0.00041917,30]
[381441972,1756198262199,-480.0,0.00041917,30]
[381441973,1756198262209,-863.92,0.00041917,30]
[381441974,1756198262219,-713.0,0.00041917,30]
[381441975,1756198262229,-922.89,0.00041917,30]
[381441976,1756198262239,-480.0,0.00041917,30]
[381441977,1756198262249,-480.0,0.00041917,30]
[381441978,1756198262259,-480.0,0.00041917,30]
[381441979,1756198262269,-1696.82,0.00041917,30]
[381441980,1756198262278,-480.0,0.00041917,30]
[381441981,1756198262288,-1115.5,0.00041917,30]
[381441982,1756198262297,-480.0,0.00041917,30]
[381441983,1756198262307,-591.73,0.00041917,30]
[381441984,1756198262316,-480.0,0.00041917,30]
[381441985,1756198262326,-480.0,0.00041917,30]
[381441986,1756198262335,-672.67,0.00041917,30]
[381441987,1756198262345,-257.06785177,0.00041917,30]
[381441988,1756198262355,-631.4,0.00041917,30]
[381441989,1756198262365,-1157.35,0.00041917,30]
[381441990,1756198262375,-480.0,0.00041917,30]
[381441991,1756198262384,-992.28,0.00041917,30]
[381441992,1756198262394,-577.08,0.00041917,14]
[381441993,1756198262404,-480.0,0.00041917,30]
[381441994,1756198262414,-480.0,0.00041917,30]
[381441995,1756198262424,-1040.12,0.00041917,30]
[381441996,1756198262433,-480.0,0.00041917,30]
[381441997,1756198262443,-480.0,0.00041917,30]
[381441998,1756198262452,-873.79,0.00041917,30]
[381441999,1756198262462,-480.0,0.00041917,30]
[381442000,1756198262472,-480.0,0.00041917,30]
[381442001,1756198262482,-539.39,0.00041917,30]
[381442002,1756198262492,-480.0,0.00041917,30]
[381442003,1756198262501,-610.43,0.00041917,30]
[381442004,1756198262512,-480.0,0.00041917,30]
[381442005,1756198262522,-480.0,0.00041917,30]
[381442006,1756198262532,-480.0,0.00041917,30]
[381442007,1756198262541,-632.2,0.00041917,30]
[381442008,1756198262551,-480.0,0.00041917,30]
[381442009,1756198262562,-480.0,0.00041917,30]
[381442010,1756198262572,-503.88,0.00041917,30]
[381442011,1756198262582,-759.18,0.00041917,30]
[381442012,1756198262592,-865.58,0.00041917,30]
[381442013,1756198262602,-516.65,0.00041917,30]
[381442014,1756198262612,-813.36,0.00041917,30]
[381442015,1756198262622,-1283.57,0.00041917,30]
[381442016,1756198262632,-480.0,0.00041917,30]
[381442017,1756198262642,-1702.05,0.00041917,30]
[381442018,1756198262652,-480.0,0.00041917,30]
[381442019,1756198262662,-480.0,0.00041917,30]
[381442020,1756198262672,-1191.93,0.00041917,30]
[381442021,1756198262682,-675.73,0.00041917,30]
[381442022,1756198262692,-480.0,0.00041917,30]
[381442023,1756198262702,-1180.89,0.00041917,30]
[381442024,1756198262712,-480.0,0.00041917,30]
[381442025,1756198262723,-611.80585543,0.00041917,30]
[381442026,1756198262732,-480.0,0.00041917,30]
[381442027,1756198262741,-1816.32,0.00041917,30]
[381442028,1756198262751,-1465.02,0.00041917,30]
[381442029,1756198262761,-480.0,0.00041917,30]
[381442030,1756198262771,-796.62,0.00041917,30]
[381442031,1756198262780,-647.94,0.00041917,30]
[381442032,1756198262790,-480.0,0.00041917,30]
[381442033,1756198262800,-1774.54,0.00041917,30]
[381442034,1756198262809,-953.95,0.00041917,30]
[381442035,1756198262819,-480.0,0.00041917,30]
[381442036,1756198262829,-480.0,0.00041917,30]
[381442037,1756198262838,-588.7,0.00041917,30]
[381442038,1756198262847,-709.52,0.00041917,30]
[381442039,1756198262857,-600.14,0.00041917,30]
[381442040,1756198262867,-2368.73,0.00041917,30]
[381442041,1756198262877,-1222.61,0.00041917,30]
[381442042,1756198262889,-707.33,0.00041917,30]
[381442043,1756198262898,-522.98,0.00041917,30]
[381442044,1756198262908,-827.07,0.00041917,30]
[381442045,1756198262917,-480.0,0.00041917,30]
[381442046,1756198262926,-480.0,0.00041917,30]
[381442047,1756198262938,-586.91,0.00041917,30]
[381442048,1756198262948,-480.0,0.00041917,30]
[381442049,1756198262958,-480.0,0.00041917,30]
[381442050,1756198262968,-480.0,0.00041917,30]
[381442051,1756198262978,-1055.57,0.00041917,30]
[381442052,1756198262988,-1270.58,0.00041917,30]
[381442053,1756198262998,-482.42,0.00041917,30]
[381442054,1756198263008,-629.35,0.00041917,30]
[381442055,1756198263018,-480.0,0.00041917,30]
[381442056,1756198263027,-2319.39,0.00041917,30]
[381442057,1756198263037,-480.0,0.00041917,30]
[381442058,1756198263047,-480.0,0.00041917,30]
[381442059,1756198263057,-373.44835112,0.00041917,30]
[381442060,1756198263067,-640.16,0.00041917,30]
[381442061,1756198263077,-2742.0161091,0.00041917,30]
[381442062,1756198263807,-442.88559382,0.00032876,120]
[381442063,1756198264427,-57.11440618,0.00032876,120]
[381442064,1756198264438,-500.0,0.00033698,120]
[381442065,1756198264448,-339.37,0.0003452,120]
[381442066,1756198264458,-151.0,0.0003661,30]
[381442067,1756198264467,-262.995,0.00038828,2]
[381442068,1756198264478,-151.0,0.000389,30]
[381442069,1756198264487,-1016.45,0.00041063,10]
[381442070,1756198264498,-480.0,0.00041095,30]
[381442071,1756198264507,-480.0,0.00041095,30]
[381442072,1756198264517,-2093.40561642,0.00041212,28]
[381442073,1756198264527,-480.0,0.00041369,30]
[381442074,1756198264706,-480.0,0.00041369,30]
[381442075,1756198264726,-480.0,0.00041643,30]
[381442076,1756198264736,-480.0,0.00041643,30]
[381442077,1756198264746,-2415.34618351,0.00041917,30]
[381442078,1756198264768,-4780.73770739,0.00041917,30]
[381442079,1756198264777,-480.0,0.00041917,30]
[381442080,1756198264787,-853.3,0.00041917,30]
[381442081,1756198264797,-480.0,0.00041917,30]
[381442082,1756198264807,-480.0,0.00041917,30]
[381442083,1756198264817,-846.48,0.00041917,30]
[381442084,1756198264826,-480.0,0.00041917,7]
[381442085,1756198264836,-2893.16,0.00041917,30]
[381442086,1756198264846,-1811.32229211,0.00041917,30]
[381442087,1756198338653,216.65883376,0.000199,2]
[381442124,1756198480798,161.57311,0.00013699,2]
[381442125,1756198481008,161.57311,0.00024907,2]
[381442126,1756198509302,216.65883376,0.000199,2]
[381442130,1756198683222,216.65883376,0.000199,2]
[381442131,1756198772052,1000.0,0.00026,2]
[381442132,1756198772234,1000.0,0.00026,2]
[381442135,1756198854121,216.65883376,0.000199,2]
[381442167,1756199431951,-234.16528107,0.00029078,2]
[381442169,1756199431963,-300.0,0.0003,60]
[381442170,1756199431974,-172.3145046,0.00031628,2]
[381442172,1756199431984,-160.0,0.00031712,2]
[381442174,1756199431997,-137.77021448,0.00031728,2]
[381442177,1756199432016,-262.22978552,0.00031728,2]
[381442179,1756199432027,-352.28192267,0.00031728,3]
[381442182,1756199432041,-478.71807733,0.00031728,3]
[381442184,1756199432052,-160.0,0.00031729,2]
[381442186,1756199432062,-368.70567176,0.00031729,2]
[381442189,1756199432103,-160.71619764,0.00031729,2]
[381442190,1756199432114,-217.18350301,0.00031729,2]
[381442191,1756199432126,-216.09257821,0.00031729,2]
[381442192,1756199432136,-63.49932293,0.00031729,2]
[381442197,1756199432233,-637.16271783,0.00031729,2]
[381442288,1756199437853,-144.41756842,0.00031729,2]
[381442289,1756199437863,-376.39720582,0.0003173,2]
[381442290,1756199437872,-199.0,0.00032576,120]
[381442291,1756199437882,-199.0,0.00032676,120]
[381442292,1756199437891,-199.0,0.00032776,120]
[381442293,1756199437901,-250.0,0.00033692,2]
[381442294,1756199437910,-560.0,0.00034135,2]
[381442295,1756199437919,-199.0,0.00034195,120]
[381442296,1756199437929,-600.0,0.00034769,20]
[381442297,1756199437938,-397.4250688,0.00035493,2]
[381442298,1756199437948,-180.982002,0.00035579,2]
[381442299,1756199437958,-757.439397,0.00036063,120]
[381442300,1756199437968,-161.57311,0.00036115,2]
[381442301,1756199437977,-276.7108618,0.00036321,2]
[381442303,1756199437987,-168.0,0.00036478,120]
[381442304,1756199437996,-168.0,0.00036692,7]
[381442305,1756199438006,-783.0,0.00036725,2]
[381442306,1756199438016,-168.0,0.00036966,2]
[381442307,1756199438026,-974.0,0.00037125,2]
[381442308,1756199438036,-2156.0,0.00037125,2]
[381442309,1756199438045,-638.0,0.00037125,2]
[381442310,1756199438055,-168.0,0.00037258,2]
[381442311,1756199438065,-168.0,0.00037321,7]